[Event "Titled Tuesday Blitz August 08 Late 2023"]
[White "Hnydiuk, Aleksander"]
[Black "Lamaze, Simon"]
[WhiteFideId "1109057"]
[BlackFideId "36069264"]
[WhiteElo "2512"]
[BlackElo "2761"]
[Result "1-0"]
[Round "2"]
[TimeControl "180+1"]
[Date "2023.08.08"]
[WhiteClock "0:00:04"]
[BlackClock "0:00:22"]
[Board "58"]

1. d4 {[%clk 0:03:00]}  d5 {[%clk 0:02:58]} 2. c4 {[%clk 0:03:00]}  e6 {[%clk 0:02:58]} 3. Nc3 {[%clk 0:02:59]}  Nf6 {[%clk 0:02:58]} 4. cxd5 {[%clk 0:02:58]}  exd5 {[%clk 0:02:59]} 5. Bg5 {[%clk 0:02:57]}  c6 {[%clk 0:02:59]} 6. e3 {[%clk 0:02:58]}  Bf5 {[%clk 0:03:00]} 7. Qf3 {[%clk 0:02:52]}  Bg6 {[%clk 0:03:00]} 8. Bxf6 {[%clk 0:02:52]}  Qxf6 {[%clk 0:03:01]} 9. Qxf6 {[%clk 0:02:52]}  gxf6 {[%clk 0:03:02]} 10. h4 {[%clk 0:02:47]}  h5 {[%clk 0:03:00]} 11. Nh3 {[%clk 0:02:40]}  Nd7 {[%clk 0:02:51]} 12. Nf4 {[%clk 0:02:39]}  Bd6 {[%clk 0:02:51]} 13. g3 {[%clk 0:02:35]}  Bxf4 {[%clk 0:02:39]} 14. gxf4 {[%clk 0:02:34]}  a5 {[%clk 0:02:38]} 15. Bh3 {[%clk 0:02:26]}  f5 {[%clk 0:02:36]} 16. O-O-O {[%clk 0:02:16]}  Ke7 {[%clk 0:02:36]} 17. Kb1 {[%clk 0:02:03]}  Nf8 {[%clk 0:02:33]} 18. Ne2 {[%clk 0:01:57]}  Ne6 {[%clk 0:02:18]} 19. Nc1 {[%clk 0:01:53]}  Rhg8 {[%clk 0:02:13]} 20. Nd3 {[%clk 0:01:48]}  Nc7 {[%clk 0:02:10]} 21. Rhg1 {[%clk 0:01:45]}  f6 {[%clk 0:02:09]} 22. Rg3 {[%clk 0:01:40]}  Kf7 {[%clk 0:02:03]} 23. Nc5 {[%clk 0:01:29]}  Rab8 {[%clk 0:01:44]} 24. Rdg1 {[%clk 0:01:28]}  Nb5 {[%clk 0:01:44]} 25. Kc1 {[%clk 0:01:17]}  Nd6 {[%clk 0:01:43]} 26. Bf1 {[%clk 0:01:02]}  Bh7 {[%clk 0:01:39]} 27. Be2 {[%clk 0:00:56]}  Rg4 {[%clk 0:01:31]} 28. Bxg4 {[%clk 0:00:46]}  fxg4 {[%clk 0:01:32]} 29. Rd1 {[%clk 0:00:39]}  Nf5 {[%clk 0:01:31]} 30. Rg2 {[%clk 0:00:37]}  Bg6 {[%clk 0:01:28]} 31. Rh2 {[%clk 0:00:34]}  g3 {[%clk 0:01:23]} 32. fxg3 {[%clk 0:00:33]}  Nxe3 {[%clk 0:01:23]} 33. Re1 {[%clk 0:00:30]}  Nf5 {[%clk 0:01:20]} 34. Rhe2 {[%clk 0:00:28]}  Kg7 {[%clk 0:01:18]} 35. Re7+ {[%clk 0:00:22]}  Nxe7 {[%clk 0:01:09]} 36. Rxe7+ {[%clk 0:00:23]}  Kh6 {[%clk 0:01:09]} 37. Rxb7 {[%clk 0:00:16]}  Re8 {[%clk 0:01:09]} 38. Kd2 {[%clk 0:00:17]}  Bb1 {[%clk 0:01:07]} 39. a3 {[%clk 0:00:15]}  Ba2 {[%clk 0:01:07]} 40. b3 {[%clk 0:00:14]}  Kg6 {[%clk 0:01:03]} 41. Rc7 {[%clk 0:00:12]}  a4 {[%clk 0:01:02]} 42. bxa4 {[%clk 0:00:11]}  Bc4 {[%clk 0:01:03]} 43. Rxc6 {[%clk 0:00:10]}  Re2+ {[%clk 0:01:02]} 44. Kc3 {[%clk 0:00:10]}  Ra2 {[%clk 0:00:55]} 45. Kb4 {[%clk 0:00:09]}  Rb2+ {[%clk 0:00:55]} 46. Kc3 {[%clk 0:00:09]}  Ra2 {[%clk 0:00:55]} 47. a5 {[%clk 0:00:09]}  Rxa3+ {[%clk 0:00:52]} 48. Kb4 {[%clk 0:00:09]}  Ra1 {[%clk 0:00:42]} 49. a6 {[%clk 0:00:09]}  Kf5 {[%clk 0:00:41]} 50. Na4 {[%clk 0:00:08]}  Rb1+ {[%clk 0:00:38]} 51. Kc5 {[%clk 0:00:06]}  Rb5+ {[%clk 0:00:36]} 52. Kd6 {[%clk 0:00:07]}  Ra5 {[%clk 0:00:37]} 53. Nc5 {[%clk 0:00:07]}  Kg4 {[%clk 0:00:28]} 54. Kc7 {[%clk 0:00:07]}  Kxg3 {[%clk 0:00:22]} 55. Rxf6 {[%clk 0:00:07]}  Kxh4 {[%clk 0:00:21]} 56. Rg6 {[%clk 0:00:07]}  Kh3 {[%clk 0:00:19]} 57. f5 {[%clk 0:00:08]}  Bd3 {[%clk 0:00:15]} 58. Rg5 {[%clk 0:00:07]}  Bxf5 {[%clk 0:00:14]} 59. Rxf5 {[%clk 0:00:06]}  Kg4 {[%clk 0:00:15]} 60. Rxd5 {[%clk 0:00:06]}  h4 {[%clk 0:00:15]} 61. Rd8 {[%clk 0:00:04]}  Ra1 {[%clk 0:00:16]} 62. Rg8+ {[%clk 0:00:03]}  Kh3 {[%clk 0:00:16]} 63. Kb6 {[%clk 0:00:02]}  Rb1+ {[%clk 0:00:16]} 64. Kc6 {[%clk 0:00:02]}  Rf1 {[%clk 0:00:17]} 65. a7 {[%clk 0:00:01]}  Rf6+ {[%clk 0:00:18]} 66. Kb5 {[%clk 0:00:01]}  Rg6 {[%clk 0:00:18]} 67. a8=Q {[%clk 0:00:02]}  Rxg8 {[%clk 0:00:19]} 68. Qxg8 {[%clk 0:00:02]}  Kh2 {[%clk 0:00:20]} 69. Qe6 {[%clk 0:00:02]}  h3 {[%clk 0:00:21]} 70. Qe5+ {[%clk 0:00:03]}  Kh1 {[%clk 0:00:22]} 71. Ne4 {[%clk 0:00:03]}  h2 {[%clk 0:00:23]} 72. Ng3+ {[%clk 0:00:03]}  Kg2 {[%clk 0:00:23]} 73. Qe4+ {[%clk 0:00:03]}  Kxg3 {[%clk 0:00:22]} 74. Qh1 {[%clk 0:00:04]} 1-0


[Site "https://www.chess.com"]

[Event "Titled Tuesday Blitz August 08 Late 2023"]
[White "Kobo, Ori"]
[Black "Bochnicka, Vladimir"]
[WhiteFideId "2812320"]
[BlackFideId "14943450"]
[WhiteElo "2742"]
[BlackElo "2493"]
[Result "1-0"]
[Round "2"]
[TimeControl "180+1"]
[Date "2023.08.08"]
[WhiteClock "0:00:13"]
[BlackClock "0:00:06"]
[Board "63"]

1. e4 {[%clk 0:03:00]}  c5 {[%clk 0:02:58]} 2. Nc3 {[%clk 0:03:00]}  Nc6 {[%clk 0:02:57]} 3. Bb5 {[%clk 0:03:00]}  Nd4 {[%clk 0:02:58]} 4. Nf3 {[%clk 0:03:01]}  e6 {[%clk 0:02:54]} 5. O-O {[%clk 0:03:00]}  Ne7 {[%clk 0:02:50]} 6. Nxd4 {[%clk 0:02:57]}  cxd4 {[%clk 0:02:50]} 7. Ne2 {[%clk 0:02:58]}  a6 {[%clk 0:02:50]} 8. Bd3 {[%clk 0:02:57]}  Nc6 {[%clk 0:02:50]} 9. c3 {[%clk 0:02:58]}  Bc5 {[%clk 0:02:46]} 10. b4 {[%clk 0:02:58]}  Ba7 {[%clk 0:02:45]} 11. cxd4 {[%clk 0:02:58]}  Nxd4 {[%clk 0:02:45]} 12. Bb2 {[%clk 0:02:57]}  Nxe2+ {[%clk 0:02:36]} 13. Qxe2 {[%clk 0:02:58]}  Qg5 {[%clk 0:02:29]} 14. Kh1 {[%clk 0:02:54]}  e5 {[%clk 0:02:29]} 15. g3 {[%clk 0:02:42]}  d6 {[%clk 0:02:13]} 16. f4 {[%clk 0:02:41]}  Qe7 {[%clk 0:02:14]} 17. fxe5 {[%clk 0:02:32]}  dxe5 {[%clk 0:02:14]} 18. Qh5 {[%clk 0:02:23]}  Bd4 {[%clk 0:01:51]} 19. Bxd4 {[%clk 0:02:16]}  exd4 {[%clk 0:01:52]} 20. e5 {[%clk 0:02:04]}  Be6 {[%clk 0:01:47]} 21. a3 {[%clk 0:01:54]}  O-O-O {[%clk 0:01:32]} 22. Rf4 {[%clk 0:01:14]}  Kb8 {[%clk 0:01:30]} 23. Raf1 {[%clk 0:01:12]}  g6 {[%clk 0:01:14]} 24. Qe2 {[%clk 0:01:12]}  Rhe8 {[%clk 0:01:11]} 25. Kg1 {[%clk 0:01:09]}  Bh3 {[%clk 0:00:57]} 26. Re1 {[%clk 0:01:07]}  Rd5 {[%clk 0:00:57]} 27. Bc4 {[%clk 0:00:56]}  Rxe5 {[%clk 0:00:54]} 28. Qxe5+ {[%clk 0:00:56]}  Qxe5 {[%clk 0:00:54]} 29. Rxe5 {[%clk 0:00:57]}  Rxe5 {[%clk 0:00:54]} 30. Rxf7 {[%clk 0:00:54]}  h5 {[%clk 0:00:42]} 31. Kf2 {[%clk 0:00:46]}  Bf5 {[%clk 0:00:36]} 32. Be2 {[%clk 0:00:38]}  d3 {[%clk 0:00:27]} 33. Bf3 {[%clk 0:00:38]}  Be4 {[%clk 0:00:27]} 34. Rd7 {[%clk 0:00:26]}  Kc8 {[%clk 0:00:19]} 35. Rd4 {[%clk 0:00:25]}  Bxf3 {[%clk 0:00:16]} 36. Kxf3 {[%clk 0:00:26]}  Re2 {[%clk 0:00:17]} 37. Rxd3 {[%clk 0:00:25]}  Rxh2 {[%clk 0:00:17]} 38. Kf4 {[%clk 0:00:24]}  h4 {[%clk 0:00:16]} 39. g4 {[%clk 0:00:20]}  Re2 {[%clk 0:00:12]} 40. Kg5 {[%clk 0:00:18]}  h3 {[%clk 0:00:11]} 41. Rxh3 {[%clk 0:00:18]}  Rxd2 {[%clk 0:00:11]} 42. Kxg6 {[%clk 0:00:17]}  Kc7 {[%clk 0:00:12]} 43. g5 {[%clk 0:00:17]}  Rg2 {[%clk 0:00:10]} 44. Rf3 {[%clk 0:00:13]}  Kb6 {[%clk 0:00:10]} 45. Kf6 {[%clk 0:00:14]}  Kb5 {[%clk 0:00:10]} 46. g6 {[%clk 0:00:14]}  Ka4 {[%clk 0:00:06]} 47. g7 {[%clk 0:00:13]} 1-0


[Site "https://www.chess.com"]

[Event "Titled Tuesday Blitz August 08 Late 2023"]
[White "Sliwicki, Damian"]
[Black "Do Valle Cardoso, Lucas"]
[WhiteFideId "1127128"]
[BlackFideId "2163144"]
[WhiteElo "2431"]
[BlackElo "2736"]
[Result "0-1"]
[Round "2"]
[TimeControl "180+1"]
[Date "2023.08.08"]
[WhiteClock "0:00:00"]
[BlackClock "0:00:18"]
[Board "64"]

1. e4 {[%clk 0:03:00]}  e5 {[%clk 0:02:56]} 2. Nf3 {[%clk 0:02:59]}  Nc6 {[%clk 0:02:56]} 3. d4 {[%clk 0:03:00]}  exd4 {[%clk 0:02:57]} 4. Bc4 {[%clk 0:03:00]}  Nf6 {[%clk 0:02:55]} 5. O-O {[%clk 0:03:00]}  Nxe4 {[%clk 0:02:55]} 6. Re1 {[%clk 0:03:01]}  d5 {[%clk 0:02:56]} 7. Bxd5 {[%clk 0:03:02]}  Qxd5 {[%clk 0:02:56]} 8. Nc3 {[%clk 0:03:01]}  Qa5 {[%clk 0:02:52]} 9. Nxe4 {[%clk 0:03:02]}  Be6 {[%clk 0:02:53]} 10. Bd2 {[%clk 0:03:02]}  Bb4 {[%clk 0:02:52]} 11. c3 {[%clk 0:03:02]}  dxc3 {[%clk 0:02:50]} 12. bxc3 {[%clk 0:03:00]}  Be7 {[%clk 0:02:48]} 13. Rb1 {[%clk 0:02:51]}  O-O-O {[%clk 0:02:37]} 14. Qe2 {[%clk 0:02:22]}  Rhe8 {[%clk 0:02:17]} 15. Rb5 {[%clk 0:02:03]}  Qa4 {[%clk 0:02:17]} 16. Reb1 {[%clk 0:01:57]}  Bc4 {[%clk 0:02:17]} 17. R5b4 {[%clk 0:01:21]}  Qxb4 {[%clk 0:02:12]} 18. Qd1 {[%clk 0:01:12]}  Qa5 {[%clk 0:01:47]} 19. Nd4 {[%clk 0:01:04]}  Nxd4 {[%clk 0:01:20]} 20. cxd4 {[%clk 0:01:05]}  Qf5 {[%clk 0:01:18]} 21. Ng3 {[%clk 0:01:03]}  Qd7 {[%clk 0:01:14]} 22. Qf3 {[%clk 0:01:00]}  Bd5 {[%clk 0:01:13]} 23. Qd3 {[%clk 0:00:49]}  g6 {[%clk 0:01:07]} 24. Ne2 {[%clk 0:00:47]}  Bd6 {[%clk 0:01:04]} 25. Nc3 {[%clk 0:00:46]}  c6 {[%clk 0:01:00]} 26. Bg5 {[%clk 0:00:36]}  Be7 {[%clk 0:00:56]} 27. Bf4 {[%clk 0:00:37]}  Qf5 {[%clk 0:00:48]} 28. Qd2 {[%clk 0:00:11]}  Bd6 {[%clk 0:00:40]} 29. Bg5 {[%clk 0:00:11]}  f6 {[%clk 0:00:40]} 30. Bh4 {[%clk 0:00:10]}  g5 {[%clk 0:00:40]} 31. Bg3 {[%clk 0:00:10]}  Bxg3 {[%clk 0:00:39]} 32. hxg3 {[%clk 0:00:11]}  h5 {[%clk 0:00:36]} 33. Qb2 {[%clk 0:00:10]}  Rd7 {[%clk 0:00:34]} 34. Na4 {[%clk 0:00:11]}  h4 {[%clk 0:00:29]} 35. Nc5 {[%clk 0:00:11]}  hxg3 {[%clk 0:00:27]} 36. fxg3 {[%clk 0:00:11]}  b6 {[%clk 0:00:17]} 37. Nxd7 {[%clk 0:00:10]}  Qxd7 {[%clk 0:00:18]} 38. Qa3 {[%clk 0:00:11]}  Kb7 {[%clk 0:00:17]} 39. Rc1 {[%clk 0:00:11]}  Re2 {[%clk 0:00:16]} 40. Kf1 {[%clk 0:00:08]}  Rxg2 {[%clk 0:00:16]} 41. Re1 {[%clk 0:00:09]}  Rxa2 {[%clk 0:00:09]} 42. Qe7 {[%clk 0:00:03]}  Qxe7 {[%clk 0:00:09]} 43. Rxe7+ {[%clk 0:00:04]}  Ka6 {[%clk 0:00:10]} 44. g4 {[%clk 0:00:04]}  Kb5 {[%clk 0:00:11]} 45. Kg1 {[%clk 0:00:04]}  Rg2+ {[%clk 0:00:11]} 46. Kf1 {[%clk 0:00:02]}  Rxg4 {[%clk 0:00:11]} 47. Kf2 {[%clk 0:00:02]}  Rxd4 {[%clk 0:00:12]} 48. Kg3 {[%clk 0:00:03]}  Rc4 {[%clk 0:00:13]} 49. Re1 {[%clk 0:00:03]}  a5 {[%clk 0:00:14]} 50. Kh2 {[%clk 0:00:04]}  Rb4 {[%clk 0:00:15]} 51. Rc1 {[%clk 0:00:04]}  a4 {[%clk 0:00:15]} 52. Rc3 {[%clk 0:00:04]}  a3 {[%clk 0:00:16]} 53. Rxa3 {[%clk 0:00:04]}  Rb2+ {[%clk 0:00:17]} 54. Kg1 {[%clk 0:00:04]}  f5 {[%clk 0:00:17]} 55. Re3 {[%clk 0:00:04]}  f4 {[%clk 0:00:17]} 56. Re1 {[%clk 0:00:04]}  g4 {[%clk 0:00:17]} 57. Rd1 {[%clk 0:00:04]}  g3 {[%clk 0:00:18]} 58. Rc1 {[%clk 0:00:00]}  Rg2+ {[%clk 0:00:18]} 0-1


[Site "https://www.chess.com"]

[Event "Titled Tuesday Blitz August 08 Late 2023"]
[White "Filipets, Egor"]
[Black "Rakotomaharo, Fy Antenaina"]
[WhiteFideId "13503928"]
[BlackFideId "13100050"]
[WhiteElo "2422"]
[BlackElo "2733"]
[Result "1-0"]
[Round "2"]
[TimeControl "180+1"]
[Date "2023.08.08"]
[WhiteClock "0:00:35"]
[BlackClock "0:00:05"]
[Board "66"]

1. c4 {[%clk 0:02:59]}  c5 {[%clk 0:02:57]} 2. g3 {[%clk 0:02:46]}  g6 {[%clk 0:02:57]} 3. Bg2 {[%clk 0:02:43]}  Bg7 {[%clk 0:02:57]} 4. Nf3 {[%clk 0:02:44]}  Nf6 {[%clk 0:02:57]} 5. O-O {[%clk 0:02:45]}  O-O {[%clk 0:02:58]} 6. d3 {[%clk 0:02:45]}  d5 {[%clk 0:02:51]} 7. Nc3 {[%clk 0:02:39]}  dxc4 {[%clk 0:02:26]} 8. dxc4 {[%clk 0:02:26]}  Qa5 {[%clk 0:02:26]} 9. Qb3 {[%clk 0:02:24]}  Nc6 {[%clk 0:02:23]} 10. Be3 {[%clk 0:02:22]}  Qb4 {[%clk 0:01:45]} 11. Nd5 {[%clk 0:01:34]}  Nxd5 {[%clk 0:00:51]} 12. cxd5 {[%clk 0:01:35]}  Ne5 {[%clk 0:00:42]} 13. Rac1 {[%clk 0:01:25]}  Qxb3 {[%clk 0:00:31]} 14. axb3 {[%clk 0:01:26]}  b6 {[%clk 0:00:31]} 15. d6 {[%clk 0:01:14]}  Bb7 {[%clk 0:00:26]} 16. dxe7 {[%clk 0:01:12]}  Rfe8 {[%clk 0:00:25]} 17. Nxe5 {[%clk 0:01:00]}  Bxg2 {[%clk 0:00:25]} 18. Kxg2 {[%clk 0:01:00]}  Bxe5 {[%clk 0:00:25]} 19. Rc2 {[%clk 0:00:52]}  Rxe7 {[%clk 0:00:23]} 20. Ra1 {[%clk 0:00:53]}  Rd8 {[%clk 0:00:20]} 21. Ra4 {[%clk 0:00:50]}  Red7 {[%clk 0:00:18]} 22. b4 {[%clk 0:00:49]}  cxb4 {[%clk 0:00:13]} 23. Rxb4 {[%clk 0:00:50]}  Kg7 {[%clk 0:00:09]} 24. Rbc4 {[%clk 0:00:45]}  h5 {[%clk 0:00:08]} 25. b3 {[%clk 0:00:44]}  Rd5 {[%clk 0:00:08]} 26. Ra4 {[%clk 0:00:42]}  R8d7 {[%clk 0:00:08]} 27. Rca2 {[%clk 0:00:42]}  Bb8 {[%clk 0:00:06]} 28. Re4 {[%clk 0:00:37]}  Rb5 {[%clk 0:00:05]} 29. b4 {[%clk 0:00:38]}  Bd6 {[%clk 0:00:03]} 30. Rd2 {[%clk 0:00:38]}  Rd8 {[%clk 0:00:03]} 31. Red4 {[%clk 0:00:37]}  Bc7 {[%clk 0:00:02]} 32. Rxd8 {[%clk 0:00:37]}  Bxd8 {[%clk 0:00:03]} 33. Rxd8 {[%clk 0:00:37]}  Rxb4 {[%clk 0:00:04]} 34. Ra8 {[%clk 0:00:38]}  a5 {[%clk 0:00:05]} 35. Rb8 {[%clk 0:00:38]}  b5 {[%clk 0:00:05]} 36. Bd2 {[%clk 0:00:37]}  Rb2 {[%clk 0:00:06]} 37. Bxa5 {[%clk 0:00:37]}  Rxe2 {[%clk 0:00:06]} 38. Rxb5 {[%clk 0:00:37]}  Re6 {[%clk 0:00:07]} 39. Bc3+ {[%clk 0:00:37]}  Kh7 {[%clk 0:00:07]} 40. h4 {[%clk 0:00:38]}  Rc6 {[%clk 0:00:06]} 41. Be5 {[%clk 0:00:38]}  Re6 {[%clk 0:00:06]} 42. f4 {[%clk 0:00:39]}  f6 {[%clk 0:00:06]} 43. Rb7+ {[%clk 0:00:39]}  Kh6 {[%clk 0:00:07]} 44. Bd4 {[%clk 0:00:39]}  Rd6 {[%clk 0:00:06]} 45. Rb4 {[%clk 0:00:39]}  Kg7 {[%clk 0:00:06]} 46. Kf3 {[%clk 0:00:39]}  Rc6 {[%clk 0:00:06]} 47. Rb6 {[%clk 0:00:39]}  Rc4 {[%clk 0:00:05]} 48. Bxf6+ {[%clk 0:00:38]}  Kh6 {[%clk 0:00:06]} 49. Bg5+ {[%clk 0:00:38]}  Kh7 {[%clk 0:00:06]} 50. Rb7+ {[%clk 0:00:38]}  Kg8 {[%clk 0:00:06]} 51. Re7 {[%clk 0:00:39]}  Rc3+ {[%clk 0:00:07]} 52. Re3 {[%clk 0:00:39]}  Rc4 {[%clk 0:00:07]} 53. Ke2 {[%clk 0:00:38]}  Kf7 {[%clk 0:00:08]} 54. Kd3 {[%clk 0:00:38]}  Ra4 {[%clk 0:00:08]} 55. Re7+ {[%clk 0:00:35]}  Kf8 {[%clk 0:00:08]} 56. Rb7 {[%clk 0:00:34]}  Ra3+ {[%clk 0:00:09]} 57. Ke4 {[%clk 0:00:35]}  Rxg3 {[%clk 0:00:09]} 58. Ke5 {[%clk 0:00:35]}  Rc3 {[%clk 0:00:05]} 59. Bh6+ {[%clk 0:00:34]}  Kg8 {[%clk 0:00:04]} 60. Rg7+ {[%clk 0:00:33]}  Kh8 {[%clk 0:00:04]} 61. Rxg6 {[%clk 0:00:34]}  Kh7 {[%clk 0:00:05]} 62. Rd6 {[%clk 0:00:33]}  Rh3 {[%clk 0:00:06]} 63. Bg5 {[%clk 0:00:33]}  Re3+ {[%clk 0:00:07]} 64. Kf5 {[%clk 0:00:34]}  Ra3 {[%clk 0:00:07]} 65. Rd7+ {[%clk 0:00:34]}  Kh8 {[%clk 0:00:07]} 66. Kg6 {[%clk 0:00:34]}  Ra6+ {[%clk 0:00:05]} 67. Bf6+ {[%clk 0:00:35]} 1-0


[Site "https://www.chess.com"]

[Event "Titled Tuesday Blitz August 08 Late 2023"]
[White "Korchmar, Vasiliy"]
[Black "GaiozNigalidze"]
[WhiteFideId "24131750"]
[WhiteElo "2729"]
[BlackElo "2403"]
[Result "0-1"]
[Round "2"]
[TimeControl "180+1"]
[Date "2023.08.08"]
[WhiteClock "0:00:02"]
[BlackClock "0:00:07"]
[Board "67"]

1. e4 {[%clk 0:03:00]}  c5 {[%clk 0:02:59]} 2. d4 {[%clk 0:02:59]}  cxd4 {[%clk 0:02:59]} 3. Qxd4 {[%clk 0:03:00]}  Nc6 {[%clk 0:02:59]} 4. Qd3 {[%clk 0:03:00]}  g6 {[%clk 0:02:59]} 5. Nc3 {[%clk 0:03:00]}  Bg7 {[%clk 0:02:59]} 6. Nf3 {[%clk 0:03:01]}  d6 {[%clk 0:02:59]} 7. Be2 {[%clk 0:03:02]}  Bg4 {[%clk 0:02:59]} 8. O-O {[%clk 0:03:01]}  Nf6 {[%clk 0:02:56]} 9. Nd5 {[%clk 0:03:01]}  O-O {[%clk 0:02:50]} 10. c3 {[%clk 0:03:01]}  Rc8 {[%clk 0:02:43]} 11. Bg5 {[%clk 0:02:59]}  Bxf3 {[%clk 0:02:39]} 12. Qxf3 {[%clk 0:02:55]}  Nxd5 {[%clk 0:02:35]} 13. exd5 {[%clk 0:02:56]}  Ne5 {[%clk 0:02:36]} 14. Qh3 {[%clk 0:02:55]}  Qb6 {[%clk 0:02:29]} 15. Bxe7 {[%clk 0:02:50]}  Rfe8 {[%clk 0:02:29]} 16. Rab1 {[%clk 0:02:35]}  f6 {[%clk 0:02:21]} 17. Qe6+ {[%clk 0:02:24]}  Nf7 {[%clk 0:02:20]} 18. Qg4 {[%clk 0:01:40]}  Rc7 {[%clk 0:02:05]} 19. Bxd6 {[%clk 0:01:34]}  Qxd6 {[%clk 0:02:04]} 20. c4 {[%clk 0:01:33]}  h5 {[%clk 0:01:53]} 21. Qf3 {[%clk 0:01:22]}  Ne5 {[%clk 0:01:53]} 22. Qe3 {[%clk 0:01:15]}  Qb6 {[%clk 0:01:31]} 23. Qe4 {[%clk 0:01:06]}  f5 {[%clk 0:01:28]} 24. Qc2 {[%clk 0:01:06]}  a5 {[%clk 0:01:23]} 25. a3 {[%clk 0:01:05]}  Qd6 {[%clk 0:01:18]} 26. Qa4 {[%clk 0:00:59]}  Ree7 {[%clk 0:01:09]} 27. Rbc1 {[%clk 0:00:46]}  b6 {[%clk 0:01:09]} 28. b4 {[%clk 0:00:45]}  axb4 {[%clk 0:01:04]} 29. axb4 {[%clk 0:00:46]}  Nd7 {[%clk 0:00:51]} 30. Rfe1 {[%clk 0:00:38]}  Bd4 {[%clk 0:00:43]} 31. g3 {[%clk 0:00:19]}  h4 {[%clk 0:00:40]} 32. Kg2 {[%clk 0:00:18]}  hxg3 {[%clk 0:00:39]} 33. hxg3 {[%clk 0:00:19]}  Kg7 {[%clk 0:00:35]} 34. Qa8 {[%clk 0:00:12]}  Nf6 {[%clk 0:00:33]} 35. Bf3 {[%clk 0:00:10]}  Rxe1 {[%clk 0:00:16]} 36. Rxe1 {[%clk 0:00:11]}  Rxc4 {[%clk 0:00:12]} 37. Re6 {[%clk 0:00:11]}  Qd7 {[%clk 0:00:10]} 38. Qb8 {[%clk 0:00:05]}  Rc2 {[%clk 0:00:09]} 39. Be2 {[%clk 0:00:02]}  Qxd5+ {[%clk 0:00:07]} 40. Kf1 {[%clk 0:00:02]}  Qh1# {[%clk 0:00:07]} 0-1


[Site "https://www.chess.com"]

[Event "Titled Tuesday Blitz August 08 Late 2023"]
[White "Luczak, Filip"]
[Black "Alex_Sahakyan2006"]
[WhiteFideId "1193686"]
[WhiteElo "2399"]
[BlackElo "2726"]
[Result "1-0"]
[Round "2"]
[TimeControl "180+1"]
[Date "2023.08.08"]
[WhiteClock "0:00:42"]
[BlackClock "0:00:03"]
[Board "68"]

1. Nf3 {[%clk 0:02:58]}  d5 {[%clk 0:02:54]} 2. c4 {[%clk 0:02:53]}  e6 {[%clk 0:02:52]} 3. g3 {[%clk 0:02:53]}  Nf6 {[%clk 0:02:51]} 4. Bg2 {[%clk 0:02:53]}  Be7 {[%clk 0:02:52]} 5. O-O {[%clk 0:02:52]}  O-O {[%clk 0:02:53]} 6. d4 {[%clk 0:02:49]}  dxc4 {[%clk 0:02:52]} 7. Ne5 {[%clk 0:02:49]}  Nc6 {[%clk 0:02:51]} 8. Nxc6 {[%clk 0:02:49]}  bxc6 {[%clk 0:02:52]} 9. Na3 {[%clk 0:02:50]}  Bxa3 {[%clk 0:02:33]} 10. bxa3 {[%clk 0:02:51]}  Nd5 {[%clk 0:02:22]} 11. Qa4 {[%clk 0:02:33]}  Nb6 {[%clk 0:01:53]} 12. Qxc6 {[%clk 0:02:26]}  Rb8 {[%clk 0:01:12]} 13. Qc5 {[%clk 0:02:03]}  Bb7 {[%clk 0:01:08]} 14. e4 {[%clk 0:02:02]}  Qd7 {[%clk 0:00:35]} 15. Bf4 {[%clk 0:01:58]}  Rbc8 {[%clk 0:00:32]} 16. Rfd1 {[%clk 0:01:52]}  Rfd8 {[%clk 0:00:29]} 17. Rac1 {[%clk 0:01:43]}  Bc6 {[%clk 0:00:23]} 18. Bg5 {[%clk 0:01:19]}  f6 {[%clk 0:00:21]} 19. Be3 {[%clk 0:01:19]}  Ba4 {[%clk 0:00:20]} 20. Rd2 {[%clk 0:01:16]}  Qb5 {[%clk 0:00:17]} 21. Bf1 {[%clk 0:01:06]}  a6 {[%clk 0:00:15]} 22. Bxc4 {[%clk 0:01:01]}  Qxc5 {[%clk 0:00:15]} 23. Bxe6+ {[%clk 0:00:58]}  Kf8 {[%clk 0:00:14]} 24. dxc5 {[%clk 0:00:56]}  Bd7 {[%clk 0:00:07]} 25. cxb6 {[%clk 0:00:46]}  Bxe6 {[%clk 0:00:07]} 26. b7 {[%clk 0:00:43]}  Rb8 {[%clk 0:00:06]} 27. Rxd8+ {[%clk 0:00:42]}  Rxd8 {[%clk 0:00:03]} 28. Ba7 {[%clk 0:00:42]} 1-0


[Site "https://www.chess.com"]

[Event "Titled Tuesday Blitz August 08 Late 2023"]
[White "Yanchenko, Roman"]
[Black "Davidson, Kevin"]
[WhiteFideId "4137329"]
[BlackFideId "2056810"]
[WhiteElo "2723"]
[BlackElo "2384"]
[Result "1-0"]
[Round "2"]
[TimeControl "180+1"]
[Date "2023.08.08"]
[WhiteClock "0:00:16"]
[BlackClock "0:00:00"]
[Board "69"]

1. d4 {[%clk 0:03:00]}  Nf6 {[%clk 0:02:59]} 2. Nf3 {[%clk 0:03:01]}  g6 {[%clk 0:02:59]} 3. Bf4 {[%clk 0:03:01]}  Bg7 {[%clk 0:02:59]} 4. e3 {[%clk 0:03:01]}  d6 {[%clk 0:03:00]} 5. h3 {[%clk 0:03:01]}  O-O {[%clk 0:03:00]} 6. Be2 {[%clk 0:03:01]}  Nfd7 {[%clk 0:03:01]} 7. O-O {[%clk 0:03:01]}  h6 {[%clk 0:03:01]} 8. Bh2 {[%clk 0:02:56]}  e5 {[%clk 0:03:01]} 9. Nc3 {[%clk 0:02:37]}  Nc6 {[%clk 0:03:00]} 10. Qd2 {[%clk 0:02:34]}  f5 {[%clk 0:02:44]} 11. dxe5 {[%clk 0:02:33]}  dxe5 {[%clk 0:02:40]} 12. Rfd1 {[%clk 0:02:32]}  g5 {[%clk 0:02:15]} 13. e4 {[%clk 0:02:16]}  f4 {[%clk 0:02:14]} 14. Nd5 {[%clk 0:02:13]}  Nd4 {[%clk 0:02:07]} 15. c3 {[%clk 0:01:37]}  Nxe2+ {[%clk 0:01:53]} 16. Qxe2 {[%clk 0:01:36]}  c6 {[%clk 0:01:49]} 17. Nb4 {[%clk 0:01:36]}  Qe7 {[%clk 0:01:42]} 18. Nd3 {[%clk 0:01:29]}  Nc5 {[%clk 0:01:30]} 19. Nxc5 {[%clk 0:01:20]}  Qxc5 {[%clk 0:01:31]} 20. Nd2 {[%clk 0:01:18]}  Be6 {[%clk 0:01:29]} 21. Kh1 {[%clk 0:01:18]}  a5 {[%clk 0:01:14]} 22. f3 {[%clk 0:01:06]}  a4 {[%clk 0:01:10]} 23. Bg1 {[%clk 0:01:06]}  Qa5 {[%clk 0:01:01]} 24. Re1 {[%clk 0:00:40]}  Rfd8 {[%clk 0:00:59]} 25. Nc4 {[%clk 0:00:38]}  Qb5 {[%clk 0:00:51]} 26. Nb6 {[%clk 0:00:38]}  Qxe2 {[%clk 0:00:47]} 27. Rxe2 {[%clk 0:00:39]}  Ra6 {[%clk 0:00:44]} 28. c4 {[%clk 0:00:39]}  Bf8 {[%clk 0:00:34]} 29. Rb1 {[%clk 0:00:34]}  Bb4 {[%clk 0:00:28]} 30. b3 {[%clk 0:00:20]}  a3 {[%clk 0:00:21]} 31. Rc2 {[%clk 0:00:19]}  Kf7 {[%clk 0:00:16]} 32. Na4 {[%clk 0:00:19]}  Raa8 {[%clk 0:00:10]} 33. Nc5 {[%clk 0:00:18]}  Bc8 {[%clk 0:00:04]} 34. Na4 {[%clk 0:00:18]}  Be6 {[%clk 0:00:02]} 35. Rbc1 {[%clk 0:00:18]}  Ke8 {[%clk 0:00:01]} 36. Nb6 {[%clk 0:00:18]}  Ra6 {[%clk 0:00:01]} 37. Na4 {[%clk 0:00:18]}  Raa8 {[%clk 0:00:01]} 38. Bb6 {[%clk 0:00:19]}  Rd7 {[%clk 0:00:01]} 39. Nc5 {[%clk 0:00:19]}  Bxc5 {[%clk 0:00:01]} 40. Bxc5 {[%clk 0:00:20]}  Kf7 {[%clk 0:00:01]} 41. Kg1 {[%clk 0:00:18]}  Ke8 {[%clk 0:00:02]} 42. Kf2 {[%clk 0:00:15]}  Rd3 {[%clk 0:00:02]} 43. Ke2 {[%clk 0:00:14]}  Rd7 {[%clk 0:00:02]} 44. Rd2 {[%clk 0:00:14]}  h5 {[%clk 0:00:03]} 45. Rxd7 {[%clk 0:00:14]}  Bxd7 {[%clk 0:00:03]} 46. Bd6 {[%clk 0:00:13]}  Ra5 {[%clk 0:00:01]} 47. c5 {[%clk 0:00:14]}  g4 {[%clk 0:00:01]} 48. hxg4 {[%clk 0:00:14]}  hxg4 {[%clk 0:00:02]} 49. Bxe5 {[%clk 0:00:14]}  gxf3+ {[%clk 0:00:01]} 50. gxf3 {[%clk 0:00:15]}  Kf7 {[%clk 0:00:01]} 51. Bxf4 {[%clk 0:00:16]}  Ke6 {[%clk 0:00:02]} 52. Bd2 {[%clk 0:00:16]}  Be8 {[%clk 0:00:00]} 53. Bxa5 {[%clk 0:00:16]} 1-0


[Site "https://www.chess.com"]